[Event "Early-Titled-Tuesday-Blitz-October-24-2023"]
[Site "Chess.com"]
[Date "2023.10.24"]
[Round "8"]
[White "Cayse"]
[Black "dropstoneDP"]
[Result "0-1"]
[WhiteElo "2880"]
[BlackElo "3093"]
[TimeControl "180+1"]
[EndTime "9:23:35 PDT"]
[Termination "dropstoneDP won by resignation"]

1. e4 {[%clk 0:03:00.9]} 1... e5 {[%clk 0:03:00.1]} 2. Nf3 {[%clk 0:03:01.1]}
2... Nf6 {[%clk 0:03:00.7]} 3. Nc3 {[%clk 0:03:00.8]} 3... Nc6 {[%clk
0:03:00.8]} 4. a4 {[%clk 0:03:00.7]} 4... d5 {[%clk 0:03:00.7]} 5. exd5 {[%clk
0:03:01]} 5... Nxd5 {[%clk 0:03:01.6]} 6. Bb5 {[%clk 0:03:01.1]} 6... Nxc3
{[%clk 0:03:01.9]} 7. bxc3 {[%clk 0:03:01.8]} 7... Bd6 {[%clk 0:03:02.4]} 8. O-O
{[%clk 0:02:59.4]} 8... O-O {[%clk 0:03:02.9]} 9. d4 {[%clk 0:02:59.8]} 9...
exd4 {[%clk 0:03:03.8]} 10. cxd4 {[%clk 0:03:00.3]} 10... Bg4 {[%clk 0:03:04.1]}
11. c3 {[%clk 0:02:59.8]} 11... Qf6 {[%clk 0:03:04.5]} 12. a5 {[%clk 0:02:59.6]}
12... Ne7 {[%clk 0:03:03.7]} 13. a6 {[%clk 0:02:56.1]} 13... bxa6 {[%clk
0:03:04.6]} 14. Rxa6 {[%clk 0:02:55.4]} 14... Nd5 {[%clk 0:03:02.4]} 15. Bc4
{[%clk 0:02:06.4]} 15... Nf4 {[%clk 0:02:38.1]} 16. Re1 {[%clk 0:01:22.8]} 16...
Rae8 {[%clk 0:02:24.6]} 17. Rxe8 {[%clk 0:01:17.2]} 17... Rxe8 {[%clk
0:02:25.5]} 18. Rxa7 {[%clk 0:00:59.8]} 18... g6 {[%clk 0:02:07.2]} 19. Kf1
{[%clk 0:00:55.6]} 19... Qf5 {[%clk 0:01:50.4]} 20. Qa4 {[%clk 0:00:30.9]} 20...
Qe4 {[%clk 0:01:15.9]} 21. Bxf4 {[%clk 0:00:21.3]} 21... Qb1+ {[%clk 0:01:13.2]}
0-1

[Event "Early-Titled-Tuesday-Blitz-October-24-2023"]
[Site "Chess.com"]
[Date "2023.10.24"]
[Round "8"]
[White "Buzhizhebuguai"]
[Black "Casper"]
[Result "1-0"]
[WhiteElo "2619"]
[BlackElo "2453"]
[TimeControl "180+1"]
[EndTime "9:23:39 PDT"]
[Termination "Buzhizhebuguai won on time"]

1. d4 {[%clk 0:03:00.9]} 1... Nf6 {[%clk 0:02:58.7]} 2. Bf4 {[%clk 0:03:00.8]}
2... Nh5 {[%clk 0:02:56.8]} 3. Bc1 {[%clk 0:03:00.1]} 3... Nf6 {[%clk
0:02:56.9]} 4. Nf3 {[%clk 0:03:00.3]} 4... d5 {[%clk 0:02:55.9]} 5. Bf4 {[%clk
0:03:00.4]} 5... g6 {[%clk 0:02:52.8]} 6. e3 {[%clk 0:03:00.4]} 6... Bg7 {[%clk
0:02:52.3]} 7. Be2 {[%clk 0:02:59.5]} 7... c5 {[%clk 0:02:52.6]} 8. c3 {[%clk
0:02:59.4]} 8... cxd4 {[%clk 0:02:52]} 9. exd4 {[%clk 0:02:59.2]} 9... O-O
{[%clk 0:02:52.9]} 10. O-O {[%clk 0:02:59.3]} 10... Nc6 {[%clk 0:02:52.9]} 11.
h3 {[%clk 0:02:58.9]} 11... a6 {[%clk 0:02:49.3]} 12. a4 {[%clk 0:02:56.9]}
12... Bf5 {[%clk 0:02:48.7]} 13. Nbd2 {[%clk 0:02:56.9]} 13... Ne4 {[%clk
0:02:42.5]} 14. Re1 {[%clk 0:02:54.6]} 14... Nd6 {[%clk 0:02:39.9]} 15. Bf1
{[%clk 0:02:54.2]} 15... Qd7 {[%clk 0:02:34.5]} 16. Nb3 {[%clk 0:02:54.1]} 16...
b6 {[%clk 0:02:31.8]} 17. a5 {[%clk 0:02:52]} 17... bxa5 {[%clk 0:02:27.1]} 18.
Nxa5 {[%clk 0:02:50.1]} 18... Nxa5 {[%clk 0:02:20.8]} 19. Rxa5 {[%clk 0:02:51]}
19... Nc4 {[%clk 0:02:21.7]} 20. Bxc4 {[%clk 0:02:44.8]} 20... dxc4 {[%clk
0:02:22.6]} 21. Ne5 {[%clk 0:02:44.6]} 21... Qb7 {[%clk 0:01:39.3]} 22. Qa1
{[%clk 0:02:37.4]} 22... Bxe5 {[%clk 0:01:29.4]} 23. Raxe5 {[%clk 0:02:33.2]}
23... e6 {[%clk 0:01:28.5]} 24. Ra5 {[%clk 0:02:28.4]} 24... Bd3 {[%clk
0:01:21.5]} 25. f3 {[%clk 0:02:27.2]} 25... Rfc8 {[%clk 0:01:03.2]} 26. Qa3
{[%clk 0:02:24.2]} 26... Rc6 {[%clk 0:00:58.8]} 27. d5 {[%clk 0:02:14.9]} 27...
exd5 {[%clk 0:00:51.8]} 28. Rxd5 {[%clk 0:02:15.8]} 28... Rb6 {[%clk 0:00:52.4]}
29. Rde5 {[%clk 0:02:11.7]} 29... Qc6 {[%clk 0:00:22.4]} 30. Bh6 {[%clk
0:02:04.3]} 30... Rbb8 {[%clk 0:00:12.2]} 31. Qe7 {[%clk 0:02:01]} 31... f6
{[%clk 0:00:05.6]} 32. Re6 {[%clk 0:02:00.7]} 32... Qb7 {[%clk 0:00:03.4]} 33.
Qxf6 {[%clk 0:02:00.5]} 33... Qf7 {[%clk 0:00:02.1]} 34. Qe5 {[%clk 0:01:55.8]}
1-0

[Event "Early-Titled-Tuesday-Blitz-October-24-2023"]
[Site "Chess.com"]
[Date "2023.10.24"]
[Round "8"]
[White "oggy1984"]
[Black "pinguino120"]
[Result "1-0"]
[WhiteElo "2443"]
[BlackElo "2213"]
[TimeControl "180+1"]
[EndTime "9:23:55 PDT"]
[Termination "oggy1984 won by checkmate"]

1. d4 {[%clk 0:03:00.9]} 1... d5 {[%clk 0:02:58.8]} 2. c4 {[%clk 0:03:00.8]}
2... e6 {[%clk 0:02:57.3]} 3. Nc3 {[%clk 0:02:58]} 3... Nf6 {[%clk 0:02:57.3]}
4. cxd5 {[%clk 0:02:57.1]} 4... exd5 {[%clk 0:02:58.2]} 5. Bf4 {[%clk
0:02:57.1]} 5... c6 {[%clk 0:02:39.5]} 6. e3 {[%clk 0:02:56]} 6... Bf5 {[%clk
0:02:38.6]} 7. Bd3 {[%clk 0:02:51.8]} 7... Bxd3 {[%clk 0:02:38]} 8. Qxd3 {[%clk
0:02:52.7]} 8... Bd6 {[%clk 0:02:37.9]} 9. Nge2 {[%clk 0:02:52.5]} 9... O-O
{[%clk 0:02:36.8]} 10. O-O {[%clk 0:02:51.9]} 10... Bxf4 {[%clk 0:02:35.8]} 11.
Nxf4 {[%clk 0:02:50.9]} 11... Qd6 {[%clk 0:02:35.5]} 12. Rab1 {[%clk 0:02:49.6]}
12... a5 {[%clk 0:02:34.3]} 13. Rfc1 {[%clk 0:02:37.5]} 13... Nbd7 {[%clk
0:02:32.7]} 14. Na4 {[%clk 0:02:36.2]} 14... b5 {[%clk 0:02:26.6]} 15. Nc5
{[%clk 0:02:35.2]} 15... Nxc5 {[%clk 0:02:24.2]} 16. Rxc5 {[%clk 0:02:34.4]}
16... Ne4 {[%clk 0:02:22.8]} 17. Rc2 {[%clk 0:02:33.1]} 17... g5 {[%clk
0:02:09.4]} 18. Nh3 {[%clk 0:02:27]} 18... h6 {[%clk 0:01:47.3]} 19. Rbc1 {[%clk
0:02:25.5]} 19... Rac8 {[%clk 0:01:46.5]} 20. f3 {[%clk 0:02:25.1]} 20... Nf6
{[%clk 0:01:43.3]} 21. Nf2 {[%clk 0:02:21.3]} 21... Kg7 {[%clk 0:01:38.9]} 22.
e4 {[%clk 0:02:05.7]} 22... dxe4 {[%clk 0:01:36.8]} 23. fxe4 {[%clk 0:02:06.6]}
23... Nd7 {[%clk 0:01:14.5]} 24. e5 {[%clk 0:02:01.3]} 24... Qd5 {[%clk
0:00:57.5]} 25. Qe4 {[%clk 0:02:00.9]} 25... Qxa2 {[%clk 0:00:43.9]} 26. h4
{[%clk 0:01:53.5]} 26... c5 {[%clk 0:00:30.6]} 27. hxg5 {[%clk 0:01:52.3]} 27...
hxg5 {[%clk 0:00:30.4]} 28. d5 {[%clk 0:01:38.7]} 28... Rce8 {[%clk 0:00:27.9]}
29. Ng4 {[%clk 0:01:38.1]} 29... f5 {[%clk 0:00:22.1]} 30. Qe3 {[%clk 0:01:27]}
30... fxg4 {[%clk 0:00:18.8]} 31. Qxg5+ {[%clk 0:01:26.6]} 31... Kh8 {[%clk
0:00:18.4]} 32. Qh6+ {[%clk 0:01:20]} 32... Kg8 {[%clk 0:00:16]} 33. Qg6+ {[%clk
0:01:20.5]} 33... Kh8 {[%clk 0:00:16.5]} 34. g3 {[%clk 0:01:20.1]} 34... Nxe5
{[%clk 0:00:16.4]} 35. Rh2# {[%clk 0:01:18.3]} 1-0

[Event "Early-Titled-Tuesday-Blitz-October-24-2023"]
[Site "Chess.com"]
[Date "2023.10.24"]
[Round "8"]
[White "Fan_Of_Chucky"]
[Black "jk13"]
[Result "0-1"]
[WhiteElo "2525"]
[BlackElo "2675"]
[TimeControl "180+1"]
[EndTime "9:23:56 PDT"]
[Termination "jk13 won by checkmate"]

1. d4 {[%clk 0:02:06.9]} 1... Nf6 {[%clk 0:02:59.7]} 2. c4 {[%clk 0:02:07.8]}
2... e6 {[%clk 0:02:58.7]} 3. Nf3 {[%clk 0:02:07.2]} 3... Bb4+ {[%clk
0:02:58.1]} 4. Bd2 {[%clk 0:01:37.6]} 4... Bxd2+ {[%clk 0:02:57.9]} 5. Nbxd2
{[%clk 0:01:38.5]} 5... O-O {[%clk 0:02:58.2]} 6. g3 {[%clk 0:01:38.6]} 6... d6
{[%clk 0:02:59.1]} 7. Bg2 {[%clk 0:01:38.7]} 7... Qe7 {[%clk 0:03:00]} 8. O-O
{[%clk 0:01:39.1]} 8... e5 {[%clk 0:03:00.9]} 9. e3 {[%clk 0:01:32.9]} 9... c5
{[%clk 0:03:01.1]} 10. dxe5 {[%clk 0:01:29.9]} 10... dxe5 {[%clk 0:03:01.1]} 11.
Ng5 {[%clk 0:01:30.5]} 11... h6 {[%clk 0:02:58.3]} 12. Nge4 {[%clk 0:01:30.6]}
12... Nbd7 {[%clk 0:02:58.2]} 13. Nxf6+ {[%clk 0:01:30]} 13... Nxf6 {[%clk
0:02:58.4]} 14. Ne4 {[%clk 0:01:30.5]} 14... Rd8 {[%clk 0:02:57.3]} 15. Qb3
{[%clk 0:01:18.7]} 15... Nxe4 {[%clk 0:02:54]} 16. Bxe4 {[%clk 0:01:19.6]} 16...
Rb8 {[%clk 0:02:54.4]} 17. Rfd1 {[%clk 0:01:15.2]} 17... Be6 {[%clk 0:02:51.5]}
18. Rxd8+ {[%clk 0:01:13.8]} 18... Rxd8 {[%clk 0:02:43.3]} 19. Bd5 {[%clk
0:00:54.8]} 19... b6 {[%clk 0:02:29.9]} 20. Rd1 {[%clk 0:00:49.6]} 20... Bg4
{[%clk 0:02:23.8]} 21. Rd2 {[%clk 0:00:31.2]} 21... e4 {[%clk 0:02:18.6]} 22.
Qc2 {[%clk 0:00:16.6]} 22... Bf3 {[%clk 0:02:16.7]} 23. Qc1 {[%clk 0:00:12.6]}
23... Kf8 {[%clk 0:02:09.5]} 24. Bc6 {[%clk 0:00:08.6]} 24... Rd6 {[%clk
0:02:05.8]} 25. Rxd6 {[%clk 0:00:08.5]} 25... Qxd6 {[%clk 0:02:05.9]} 26. Bd5
{[%clk 0:00:09.4]} 26... Qd7 {[%clk 0:02:05.2]} 27. b3 {[%clk 0:00:08.7]} 27...
Ke7 {[%clk 0:01:51.5]} 28. Qb1 {[%clk 0:00:08.6]} 28... Qf5 {[%clk 0:01:48.9]}
29. Qc1 {[%clk 0:00:06.1]} 29... g5 {[%clk 0:01:47.1]} 30. Bc6 {[%clk
0:00:05.5]} 30... h5 {[%clk 0:01:41.8]} 31. Bd5 {[%clk 0:00:03.7]} 31... h4
{[%clk 0:01:42.3]} 32. Qd2 {[%clk 0:00:03]} 32... Qf6 {[%clk 0:01:34.8]} 33. Qc1
{[%clk 0:00:02.7]} 33... Qe5 {[%clk 0:01:32.7]} 34. Qe1 {[%clk 0:00:02.7]} 34...
Qb2 {[%clk 0:01:30.2]} 35. gxh4 {[%clk 0:00:01.9]} 35... gxh4 {[%clk 0:01:29.8]}
36. h3 {[%clk 0:00:01.9]} 36... Qg7+ {[%clk 0:01:29.5]} 37. Kf1 {[%clk
0:00:02.5]} 37... Qg2# {[%clk 0:01:30.1]} 0-1

[Event "Early-Titled-Tuesday-Blitz-October-24-2023"]
[Site "Chess.com"]
[Date "2023.10.24"]
[Round "8"]
[White "OLDTERMINATOR"]
[Black "Verony64"]
[Result "0-1"]
[WhiteElo "1702"]
[BlackElo "2178"]
[TimeControl "180+1"]
[EndTime "9:23:59 PDT"]
[Termination "Verony64 won by resignation"]

1. e4 {[%clk 0:02:59.6]} 1... e5 {[%clk 0:02:56.1]} 2. Nf3 {[%clk 0:02:59.3]}
2... d6 {[%clk 0:02:54.8]} 3. d4 {[%clk 0:02:57.6]} 3... Nd7 {[%clk 0:02:52.7]}
4. Bc4 {[%clk 0:02:55.8]} 4... c6 {[%clk 0:02:52]} 5. O-O {[%clk 0:02:38.1]}
5... Be7 {[%clk 0:02:51.9]} 6. dxe5 {[%clk 0:02:36.8]} 6... dxe5 {[%clk
0:02:51.1]} 7. Ng5 {[%clk 0:02:34.3]} 7... Bxg5 {[%clk 0:02:50.3]} 8. Qh5 {[%clk
0:02:33.9]} 8... Qe7 {[%clk 0:02:51]} 9. Bxg5 {[%clk 0:02:20.6]} 9... Ngf6
{[%clk 0:02:51.3]} 10. Qh4 {[%clk 0:02:20.5]} 10... O-O {[%clk 0:02:47.1]} 11.
Nc3 {[%clk 0:02:18.3]} 11... h6 {[%clk 0:02:47.3]} 12. Be3 {[%clk 0:02:10.4]}
12... b5 {[%clk 0:02:45.6]} 13. Bb3 {[%clk 0:02:04.7]} 13... a5 {[%clk
0:02:45.5]} 14. a4 {[%clk 0:02:02.5]} 14... b4 {[%clk 0:02:44.9]} 15. Ne2 {[%clk
0:02:00.9]} 15... Nc5 {[%clk 0:02:43.2]} 16. Bxc5 {[%clk 0:01:49.4]} 16... Qxc5
{[%clk 0:02:43]} 17. Rad1 {[%clk 0:01:41.4]} 17... Ba6 {[%clk 0:02:37]} 18. Rfe1
{[%clk 0:01:38.4]} 18... Rad8 {[%clk 0:02:34.7]} 19. Ng3 {[%clk 0:01:30.1]}
19... Bc8 {[%clk 0:01:47.8]} 20. Nf5 {[%clk 0:01:12]} 20... Bxf5 {[%clk
0:01:46.1]} 21. exf5 {[%clk 0:01:11.3]} 21... e4 {[%clk 0:01:45.7]} 22. g4
{[%clk 0:01:10]} 22... Qe5 {[%clk 0:01:31.3]} 23. h3 {[%clk 0:00:38.3]} 23...
Rxd1 {[%clk 0:01:14.9]} 24. Rxd1 {[%clk 0:00:37]} 24... e3 {[%clk 0:01:15.5]}
25. fxe3 {[%clk 0:00:30.9]} 25... Qxe3+ {[%clk 0:01:14.8]} 26. Qf2 {[%clk
0:00:31.3]} 26... Qxh3 {[%clk 0:01:14.6]} 27. Rd4 {[%clk 0:00:25]} 27... Nxg4
{[%clk 0:01:09.1]} 28. Qg2 {[%clk 0:00:16.2]} 28... Qe3+ {[%clk 0:01:04.2]} 0-1

[Event "Early-Titled-Tuesday-Blitz-October-24-2023"]
[Site "Chess.com"]
[Date "2023.10.24"]
[Round "8"]
[White "abelmat"]
[Black "laiciffOneslraCsungaM"]
[Result "0-1"]
[WhiteElo "2004"]
[BlackElo "2333"]
[TimeControl "180+1"]
[EndTime "9:24:00 PDT"]
[Termination "laiciffOneslraCsungaM won by resignation"]

1. d4 {[%clk 0:02:56.6]} 1... d5 {[%clk 0:02:55.8]} 2. c4 {[%clk 0:02:56.9]}
2... e6 {[%clk 0:02:55.4]} 3. Nf3 {[%clk 0:02:57.5]} 3... c6 {[%clk 0:02:54.4]}
4. e3 {[%clk 0:02:55.7]} 4... f5 {[%clk 0:02:42.2]} 5. Nc3 {[%clk 0:02:54.3]}
5... Nd7 {[%clk 0:02:18.8]} 6. Bd3 {[%clk 0:02:54.2]} 6... Nh6 {[%clk
0:02:03.6]} 7. Ne5 {[%clk 0:02:48.2]} 7... Nxe5 {[%clk 0:01:41.8]} 8. dxe5
{[%clk 0:02:49.1]} 8... Ng4 {[%clk 0:01:42.2]} 9. f4 {[%clk 0:02:39.9]} 9... g5
{[%clk 0:01:41.7]} 10. O-O {[%clk 0:02:07.2]} 10... gxf4 {[%clk 0:01:10.3]} 11.
exf4 {[%clk 0:01:49.5]} 11... Bc5+ {[%clk 0:01:05.9]} 12. Kh1 {[%clk 0:01:49.3]}
12... Qh4 {[%clk 0:00:52.9]} 13. h3 {[%clk 0:01:38.7]} 13... h5 {[%clk
0:00:47.1]} 14. cxd5 {[%clk 0:01:35.8]} 14... Qg3 {[%clk 0:00:44.4]} 15. Qxg4
{[%clk 0:00:18.5]} 15... hxg4 {[%clk 0:00:45.3]} 16. Ne2 {[%clk 0:00:15.8]}
16... Rxh3+ {[%clk 0:00:44.8]} 0-1

[Event "Early-Titled-Tuesday-Blitz-October-24-2023"]
[Site "Chess.com"]
[Date "2023.10.24"]
[Round "8"]
[White "ama18"]
[Black "leejunhyeok"]
[Result "0-1"]
[WhiteElo "2522"]
[BlackElo "2669"]
[TimeControl "180+1"]
[EndTime "9:24:08 PDT"]
[Termination "leejunhyeok won on time"]

1. e4 {[%clk 0:02:58.9]} 1... c5 {[%clk 0:02:57.1]} 2. Nf3 {[%clk 0:02:57.2]}
2... d6 {[%clk 0:02:57.3]} 3. d4 {[%clk 0:02:57.3]} 3... cxd4 {[%clk 0:02:58.2]}
4. Nxd4 {[%clk 0:02:58]} 4... Nf6 {[%clk 0:02:58.5]} 5. Nc3 {[%clk 0:02:58.6]}
5... a6 {[%clk 0:02:59.1]} 6. Be3 {[%clk 0:02:46.7]} 6... e5 {[%clk 0:02:58]} 7.
Nf3 {[%clk 0:02:45.9]} 7... Be7 {[%clk 0:02:57.3]} 8. h3 {[%clk 0:02:39.5]} 8...
Be6 {[%clk 0:02:56.4]} 9. Ng5 {[%clk 0:02:35.8]} 9... Nc6 {[%clk 0:02:50.3]} 10.
g4 {[%clk 0:02:25.9]} 10... d5 {[%clk 0:02:40.9]} 11. exd5 {[%clk 0:02:12.7]}
11... Bxd5 {[%clk 0:02:40.1]} 12. Nxd5 {[%clk 0:02:01.7]} 12... Nxd5 {[%clk
0:02:39.9]} 13. Ne4 {[%clk 0:02:01.9]} 13... Nxe3 {[%clk 0:02:39.2]} 14. Qxd8+
{[%clk 0:02:02.6]} 14... Rxd8 {[%clk 0:02:37.4]} 15. fxe3 {[%clk 0:02:03.5]}
15... Nb4 {[%clk 0:02:23.3]} 16. Rc1 {[%clk 0:01:42.7]} 16... Nxa2 {[%clk
0:02:19]} 17. Rd1 {[%clk 0:01:42.9]} 17... Nb4 {[%clk 0:02:11]} 18. Rxd8+ {[%clk
0:01:41.2]} 18... Kxd8 {[%clk 0:02:11.9]} 19. c3 {[%clk 0:01:41.6]} 19... Nc6
{[%clk 0:01:50.8]} 20. Bc4 {[%clk 0:01:40.9]} 20... f6 {[%clk 0:01:49.4]} 21.
Ke2 {[%clk 0:01:40.7]} 21... Kc7 {[%clk 0:01:49.4]} 22. Rd1 {[%clk 0:01:40.6]}
22... h5 {[%clk 0:01:13.2]} 23. Be6 {[%clk 0:00:20.4]} 23... Nb8 {[%clk
0:01:12.8]} 24. Rg1 {[%clk 0:00:11.1]} 24... hxg4 {[%clk 0:01:11.4]} 25. Rxg4
{[%clk 0:00:04.8]} 25... Bf8 {[%clk 0:01:05.7]} 26. Rg2 {[%clk 0:00:01.6]} 26...
Nc6 {[%clk 0:01:04.7]} 0-1

[Event "Early-Titled-Tuesday-Blitz-October-24-2023"]
[Site "Chess.com"]
[Date "2023.10.24"]
[Round "8"]
[White "milovichalex"]
[Black "tusplingher"]
[Result "0-1"]
[WhiteElo "2321"]
[BlackElo "2501"]
[TimeControl "180+1"]
[EndTime "9:24:12 PDT"]
[Termination "tusplingher won by checkmate"]

1. e4 {[%clk 0:03:00.9]} 1... d5 {[%clk 0:02:58.6]} 2. exd5 {[%clk 0:03:00.7]}
2... Nf6 {[%clk 0:02:59]} 3. d4 {[%clk 0:03:00.7]} 3... Bg4 {[%clk 0:02:58.5]}
4. Be2 {[%clk 0:03:00.5]} 4... Bxe2 {[%clk 0:02:58.1]} 5. Qxe2 {[%clk
0:03:00.3]} 5... Qxd5 {[%clk 0:02:58.4]} 6. Nf3 {[%clk 0:03:00.7]} 6... Nc6
{[%clk 0:02:58.9]} 7. c3 {[%clk 0:03:00.6]} 7... e6 {[%clk 0:02:58.9]} 8. O-O
{[%clk 0:03:00.4]} 8... Bd6 {[%clk 0:02:58.9]} 9. Re1 {[%clk 0:02:52.2]} 9...
O-O {[%clk 0:02:56.5]} 10. Bg5 {[%clk 0:02:41.5]} 10... Ng4 {[%clk 0:02:47.9]}
11. h3 {[%clk 0:02:38]} 11... Nh2 {[%clk 0:02:47]} 12. Nbd2 {[%clk 0:02:25.9]}
12... h6 {[%clk 0:02:42.3]} 13. Nxh2 {[%clk 0:01:34]} 13... Qxg5 {[%clk
0:02:38.4]} 14. Ne4 {[%clk 0:01:27.1]} 14... Bxh2+ {[%clk 0:02:37.2]} 15. Kxh2
{[%clk 0:01:27]} 15... Qf4+ {[%clk 0:02:25.4]} 16. g3 {[%clk 0:01:25.6]} 16...
Qf5 {[%clk 0:02:25.7]} 17. f4 {[%clk 0:00:58.6]} 17... Rad8 {[%clk 0:02:21.9]}
18. Qf3 {[%clk 0:00:48.6]} 18... Qd5 {[%clk 0:02:19.1]} 19. Kg2 {[%clk
0:00:35.6]} 19... Ne7 {[%clk 0:02:15.8]} 20. a4 {[%clk 0:00:26.3]} 20... Nf5
{[%clk 0:01:58.3]} 21. a5 {[%clk 0:00:21.1]} 21... a6 {[%clk 0:01:58]} 22. Nc5
{[%clk 0:00:20.1]} 22... Qc4 {[%clk 0:01:43.7]} 23. b3 {[%clk 0:00:15.4]} 23...
Qb5 {[%clk 0:01:43]} 24. Qxb7 {[%clk 0:00:11.9]} 24... Qe8 {[%clk 0:01:42.3]}
25. Nxa6 {[%clk 0:00:10.4]} 25... g5 {[%clk 0:01:35.1]} 26. Qf3 {[%clk
0:00:09.9]} 26... gxf4 {[%clk 0:01:32.9]} 27. Qxf4 {[%clk 0:00:10.4]} 27... Qc6+
{[%clk 0:01:32.8]} 28. Kh2 {[%clk 0:00:06.8]} 28... Qxa6 {[%clk 0:01:33.1]} 29.
g4 {[%clk 0:00:07.4]} 29... Ng7 {[%clk 0:01:30.7]} 30. Qxh6 {[%clk 0:00:07.4]}
30... Qd3 {[%clk 0:01:16.5]} 31. Re3 {[%clk 0:00:06.4]} 31... Qd2+ {[%clk
0:01:16.6]} 32. Kg3 {[%clk 0:00:06.7]} 32... f5 {[%clk 0:01:15.3]} 33. g5 {[%clk
0:00:05.8]} 33... f4+ {[%clk 0:01:14.8]} 34. Kh4 {[%clk 0:00:05.8]} 34... Qxe3
{[%clk 0:01:13.8]} 35. g6 {[%clk 0:00:06.2]} 35... Qg3# {[%clk 0:01:14]} 0-1

[Event "Early-Titled-Tuesday-Blitz-October-24-2023"]
[Site "Chess.com"]
[Date "2023.10.24"]
[Round "8"]
[White "zajka-molotok"]
[Black "ExcitingTrap"]
[Result "0-1"]
[WhiteElo "2541"]
[BlackElo "2404"]
[TimeControl "180+1"]
[EndTime "9:24:14 PDT"]
[Termination "ExcitingTrap won by resignation"]

1. e4 {[%clk 0:03:00.9]} 1... e5 {[%clk 0:03:00.2]} 2. Nf3 {[%clk 0:03:00.4]}
2... Nc6 {[%clk 0:02:59.4]} 3. Nc3 {[%clk 0:03:00]} 3... Nf6 {[%clk 0:02:59]} 4.
Bb5 {[%clk 0:03:00.1]} 4... Bb4 {[%clk 0:02:58.2]} 5. O-O {[%clk 0:02:58.9]}
5... O-O {[%clk 0:02:57.7]} 6. Bxc6 {[%clk 0:02:57.7]} 6... dxc6 {[%clk
0:02:57.7]} 7. d3 {[%clk 0:02:56.3]} 7... Qe7 {[%clk 0:02:51.9]} 8. Ne2 {[%clk
0:02:52.1]} 8... Nh5 {[%clk 0:02:43.3]} 9. Ng3 {[%clk 0:02:45.5]} 9... Nxg3
{[%clk 0:02:43.1]} 10. fxg3 {[%clk 0:02:42.4]} 10... Bc5+ {[%clk 0:02:35]} 11.
Kh1 {[%clk 0:02:41.9]} 11... f6 {[%clk 0:02:17.4]} 12. Qe2 {[%clk 0:02:39.9]}
12... Bg4 {[%clk 0:02:13.2]} 13. h3 {[%clk 0:02:38.3]} 13... Bh5 {[%clk
0:02:12.3]} 14. g4 {[%clk 0:02:37.3]} 14... Bg6 {[%clk 0:02:09.8]} 15. Be3
{[%clk 0:02:27.6]} 15... Kh8 {[%clk 0:02:06]} 16. Nh4 {[%clk 0:02:21.1]} 16...
Rad8 {[%clk 0:02:00.3]} 17. Rf3 {[%clk 0:02:03.8]} 17... Bxe3 {[%clk 0:01:50.7]}
18. Qxe3 {[%clk 0:02:02.6]} 18... Qb4 {[%clk 0:01:50.7]} 19. b3 {[%clk
0:01:56.4]} 19... Qd4 {[%clk 0:01:50.3]} 20. Raf1 {[%clk 0:01:51.7]} 20... Qxe3
{[%clk 0:01:45.2]} 21. Rxe3 {[%clk 0:01:52.6]} 21... Rfe8 {[%clk 0:01:43.3]} 22.
g5 {[%clk 0:01:38.8]} 22... Re6 {[%clk 0:01:26.6]} 23. Ref3 {[%clk 0:01:36]}
23... Rdd6 {[%clk 0:01:13.5]} 24. g4 {[%clk 0:01:26.9]} 24... Kg8 {[%clk
0:01:10.7]} 25. Kg2 {[%clk 0:01:25.8]} 25... Kf7 {[%clk 0:01:09.4]} 26. Kg3
{[%clk 0:01:23.4]} 26... Ke8 {[%clk 0:01:04.6]} 27. Nf5 {[%clk 0:01:15.1]} 27...
Bxf5 {[%clk 0:00:48.5]} 28. Rxf5 {[%clk 0:01:13.2]} 28... fxg5 {[%clk
0:00:31.7]} 29. Rxg5 {[%clk 0:01:09.3]} 29... g6 {[%clk 0:00:31.6]} 30. h4
{[%clk 0:00:54.7]} 30... h6 {[%clk 0:00:31.2]} 31. h5 {[%clk 0:00:51.3]} 31...
hxg5 {[%clk 0:00:30.6]} 32. h6 {[%clk 0:00:51.3]} 32... Re7 {[%clk 0:00:29.2]}
0-1

[Event "Early-Titled-Tuesday-Blitz-October-24-2023"]
[Site "Chess.com"]
[Date "2023.10.24"]
[Round "8"]
[White "chess123456s"]
[Black "blitzking1729"]
[Result "0-1"]
[WhiteElo "2553"]
[BlackElo "2805"]
[TimeControl "180+1"]
[EndTime "9:24:21 PDT"]
[Termination "blitzking1729 won by resignation"]

1. e4 {[%clk 0:03:00.9]} 1... d6 {[%clk 0:02:56.3]} 2. d4 {[%clk 0:03:00.8]}
2... Nf6 {[%clk 0:02:54]} 3. Nc3 {[%clk 0:03:01.3]} 3... e5 {[%clk 0:02:53.1]}
4. Nge2 {[%clk 0:03:00.4]} 4... exd4 {[%clk 0:02:52.7]} 5. Nxd4 {[%clk
0:02:58.6]} 5... Be7 {[%clk 0:02:52.4]} 6. g3 {[%clk 0:02:55.3]} 6... O-O {[%clk
0:02:48.9]} 7. Bg2 {[%clk 0:02:55.7]} 7... Re8 {[%clk 0:02:48.1]} 8. O-O {[%clk
0:02:55.5]} 8... Bf8 {[%clk 0:02:48.2]} 9. h3 {[%clk 0:02:53.8]} 9... h6 {[%clk
0:02:47.1]} 10. Be3 {[%clk 0:02:51.3]} 10... Nbd7 {[%clk 0:02:43.1]} 11. g4
{[%clk 0:02:50.8]} 11... Nc5 {[%clk 0:02:42]} 12. f3 {[%clk 0:02:26.9]} 12... d5
{[%clk 0:02:39.8]} 13. Nb3 {[%clk 0:02:13.8]} 13... Nxb3 {[%clk 0:02:36]} 14.
axb3 {[%clk 0:02:14.7]} 14... dxe4 {[%clk 0:02:32.1]} 15. Qxd8 {[%clk
0:02:13.8]} 15... Rxd8 {[%clk 0:02:31.8]} 16. f4 {[%clk 0:02:13.9]} 16... c6
{[%clk 0:02:27.1]} 17. Rad1 {[%clk 0:02:08.9]} 17... Be6 {[%clk 0:02:24.3]} 18.
Nxe4 {[%clk 0:02:05.2]} 18... Nxe4 {[%clk 0:02:21.1]} 19. Bxe4 {[%clk
0:02:06.1]} 19... Re8 {[%clk 0:02:20.3]} 20. Bd3 {[%clk 0:01:25.6]} 20... Bxb3
{[%clk 0:02:12.1]} 21. Bd4 {[%clk 0:01:04.4]} 21... Bd5 {[%clk 0:02:07.1]} 22.
c4 {[%clk 0:01:01.2]} 22... Be4 {[%clk 0:02:04.8]} 23. Be2 {[%clk 0:00:45.3]}
23... a5 {[%clk 0:01:48.8]} 24. Bb6 {[%clk 0:00:38]} 24... a4 {[%clk 0:01:46]}
25. Rd7 {[%clk 0:00:31.5]} 25... a3 {[%clk 0:01:40.8]} 26. bxa3 {[%clk
0:00:31.5]} 26... Rxa3 {[%clk 0:01:41.7]} 27. Kh2 {[%clk 0:00:23.7]} 27... c5
{[%clk 0:01:26.4]} 28. f5 {[%clk 0:00:17.6]} 28... Ra2 {[%clk 0:01:23.6]} 29.
Rf2 {[%clk 0:00:16.8]} 29... Bc6 {[%clk 0:01:23.5]} 30. Rd8 {[%clk 0:00:10.1]}
30... Rexe2 {[%clk 0:01:13.4]} 31. Rxe2 {[%clk 0:00:04.4]} 31... Rxe2+ {[%clk
0:01:14.2]} 32. Kg3 {[%clk 0:00:04.9]} 32... Re8 {[%clk 0:01:14.2]} 0-1